fUST/lending_fUST_20250826
["ID","MTS","AMOUNT","RATE_DAILY","PERIOD"]
[381353241,1756145438632,-1000.0,0.00039521,5]
[381353242,1756145438641,-618.61357223,0.00039521,5]
[381353243,1756145438650,-1000.0,0.00039521,5]
[381353244,1756145438660,-1000.0,0.00039521,5]
[381353245,1756145438669,-500.0,0.00039521,5]
[381353246,1756145438678,-1000.0,0.00039521,5]
[381353247,1756145438688,-500.0,0.00039521,5]
[381353248,1756145438696,-1147.04621466,0.00039521,5]
[381353249,1756145438706,-1000.0,0.00039521,5]
[381353250,1756145438715,-1000.0,0.00039521,5]
[381353251,1756145438724,-347.39457964,0.00039537,53]
[381353252,1756145438733,-260.0,0.00039581,2]
[381353253,1756145438743,-12701.40788335,0.00039667,2]
[381353254,1756145438760,-168.0,0.00039701,2]
[381353255,1756145438770,-160.0,0.0003971,2]
[381353256,1756145438779,-160.0,0.00039711,2]
[381353257,1756145438788,-160.0,0.00039711,2]
[381353258,1756145438797,-160.0,0.00039724,2]
[381353259,1756145438806,-376.30788339,0.00039724,2]
[381353260,1756145438815,-160.0,0.00039724,2]
[381353261,1756145438824,-160.0,0.00039724,2]
[381353262,1756145438833,-800.0,0.00039725,7]
[381353263,1756145438842,-160.0,0.00039725,2]
[381353264,1756145438851,-160.0,0.00039725,2]
[381353265,1756145438860,-160.0,0.00039725,2]
[381353266,1756145438869,-232.4766599,0.00039725,2]
[381353267,1756145438879,-216.04034502,0.00039727,2]
[381353268,1756145438888,-217.12848614,0.00039727,2]
[381353269,1756145438897,-343.0,0.0003975,2]
[381353270,1756145438907,-1000.0,0.0003975,2]
[381353271,1756145438916,-168.0,0.00039823,2]
[381353272,1756145438925,-3562.12613392,0.0003987,2]
[381353273,1756145438934,-9487.79199034,0.0003987,2]
[381353274,1756145438943,-172006.70817954,0.000399,2]
[381353275,1756145438955,-68429.86381209,0.000399,2]
[381353293,1756145443407,-160.0,0.00039724,2]
[381353295,1756145443417,-129563.42800837,0.000399,2]
[381353297,1756145443426,-208.0,0.0003997,30]
[381353299,1756145443436,-4000.0,0.00039971,4]
[381353301,1756145443449,-500.0,0.0004,120]
[381353303,1756145443459,-500.0,0.0004,120]
[381353305,1756145443468,-500.0,0.0004,120]
[381353307,1756145443478,-500.0,0.0004,120]
[381353310,1756145443487,-500.0,0.0004,120]
[381353312,1756145443496,-500.0,0.0004,120]
[381353314,1756145443506,-500.0,0.0004,120]
[381353317,1756145443515,-485.21870219,0.0004,120]
[381353319,1756145443524,-1500.0,0.0004,120]
[381353321,1756145443534,-260.0,0.00040062,120]
[381353323,1756145443543,-715.91153094,0.00040068,5]
[381353325,1756145443553,-500.0,0.00040068,5]
[381353326,1756145443562,-534.04718334,0.00040068,5]
[381353327,1756145443571,-500.0,0.00040068,5]
[381353328,1756145443580,-168.0,0.00040169,2]
[381353329,1756145443589,-260.0,0.00040182,2]
[381353330,1756145443598,-260.0,0.00040286,2]
[381353331,1756145443608,-371.62729659,0.00040418,120]
[381353332,1756145443617,-206.969,0.00040518,2]
[381353333,1756145443627,-800.0,0.00040547,7]
[381353334,1756145443636,-371.62729655,0.00040604,120]
[381353335,1756145443646,-1280.22,0.00040633,120]
[381353336,1756145443655,-208.0,0.0004067,30]
[381353337,1756145443665,-168.0,0.00040769,7]
[381353338,1756145443675,-371.62729655,0.0004079,120]
[381353339,1756145443686,-17830.28,0.000408,14]
[381353340,1756145443695,-432.32,0.000408,7]
[381353341,1756145443704,-168.0,0.00040842,120]
[381353342,1756145443714,-371.62729655,0.00040976,120]
[381353343,1756145443723,-199.0,0.00040995,120]
[381353344,1756145443733,-199.0,0.00040995,120]
[381353345,1756145443743,-150.0,0.00041,120]
[381353346,1756145443752,-967.0,0.00041,30]
[381353347,1756145443762,-7355.0459575,0.0004104,2]
[381353348,1756145443771,-2200.0,0.00041047,14]
[381353349,1756145443781,-633.86486829,0.00041073,5]
[381353350,1756145443791,-276.90028288,0.00041073,5]
[381353351,1756145443801,-501.721902,0.00041073,5]
[381353352,1756145443810,-502.38628705,0.00041073,5]
[381353353,1756145443819,-500.0,0.00041073,5]
[381353354,1756145443828,-500.0,0.00041073,5]
[381353355,1756145443838,-504.2643275,0.00041073,5]
[381353356,1756145443847,-500.0,0.00041073,5]
[381353357,1756145443857,-500.0,0.00041073,5]
[381353358,1756145443866,-500.0,0.00041073,5]
[381353359,1756145443876,-162.44132055,0.00041073,5]
[381353360,1756145443886,-500.0,0.00041073,5]
[381353361,1756145443895,-500.0,0.00041073,5]
[381353362,1756145443905,-588.0024986,0.00041073,5]
[381353363,1756145443914,-500.0,0.00041073,5]
[381353364,1756145443924,-500.0,0.00041073,5]
[381353365,1756145443933,-500.0,0.00041073,5]
[381353366,1756145443943,-500.0,0.00041073,2]
[381353367,1756145443952,-500.0,0.00041073,5]
[381353368,1756145443961,-500.0,0.00041073,5]
[381353369,1756145443971,-500.0,0.00041073,5]
[381353370,1756145443980,-500.0,0.00041073,2]
[381353371,1756145443990,-500.0,0.00041073,5]
[381353372,1756145443999,-500.0,0.00041073,5]
[381353373,1756145444008,-500.0,0.00041073,5]
[381353374,1756145444018,-500.0,0.00041073,5]
[381353375,1756145444028,-500.0,0.00041073,5]
[381353376,1756145444038,-500.0,0.00041073,5]
[381353377,1756145444048,-500.0,0.00041073,5]
[381353378,1756145444057,-500.0,0.00041073,5]
[381353379,1756145444066,-500.0,0.00041073,5]
[381353380,1756145444075,-500.0,0.00041073,5]
[381353381,1756145444085,-500.0,0.00041073,5]
[381353382,1756145444094,-500.0,0.00041073,5]
[381353383,1756145444103,-500.0,0.00041073,5]
[381353384,1756145444112,-522.64815616,0.00041073,5]
[381353385,1756145444121,-500.0,0.00041073,5]
[381353386,1756145444130,-446.17143664,0.00041073,5]
[381353387,1756145444139,-500.0,0.00041073,5]
[381353388,1756145444149,-503.76945198,0.00041073,5]
[381353389,1756145444162,-500.0,0.00041073,5]
[381353390,1756145444171,-500.0,0.00041073,5]
[381353391,1756145444180,-501.49859849,0.00041073,5]
[381353392,1756145444189,-500.0,0.00041073,5]
[381353393,1756145444198,-500.84414476,0.00041073,5]
[381353394,1756145444207,-500.0,0.00041073,5]
[381353395,1756145444216,-500.0,0.00041073,5]
[381353396,1756145444226,-500.0,0.00041073,5]
[381353397,1756145444236,-500.0,0.00041073,5]
[381353398,1756145444246,-500.0,0.00041073,5]
[381353399,1756145444256,-500.0,0.00041073,5]
[381353400,1756145444264,-500.0,0.00041073,5]
[381353401,1756145444273,-560.96118353,0.00041073,5]
[381353402,1756145444283,-500.0,0.00041073,5]
[381353403,1756145444292,-500.0,0.00041073,5]
[381353404,1756145444301,-575.97760409,0.00041073,5]
[381353405,1756145444310,-500.0,0.00041073,5]
[381353406,1756145444319,-500.0,0.00041073,5]
[381353407,1756145444329,-500.0,0.00041073,5]
[381353408,1756145444338,-480.0,0.00041095,30]
[381353409,1756145444347,-480.0,0.00041095,30]
[381353410,1756145444357,-480.0,0.00041095,30]
[381353411,1756145444368,-480.0,0.00041095,30]
[381353412,1756145444378,-480.0,0.00041095,30]
[381353413,1756145444387,-480.0,0.00041095,30]
[381353414,1756145444397,-480.0,0.00041095,30]
[381353415,1756145444406,-480.0,0.00041095,30]
[381353416,1756145444415,-165.03464915,0.00041095,30]
[381353417,1756145444423,-480.0,0.00041095,30]
[381353418,1756145444433,-2597.57,0.00041095,30]
[381353419,1756145444442,-480.0,0.00041095,30]
[381353420,1756145444452,-480.0,0.00041095,30]
[381353421,1756145444461,-480.0,0.00041095,30]
[381353422,1756145444471,-480.0,0.00041095,30]
[381353423,1756145444480,-480.0,0.00041095,30]
[381353424,1756145444489,-480.0,0.00041095,30]
[381353425,1756145444498,-245.17916503,0.00041095,30]
[381353426,1756145444507,-480.0,0.00041095,30]
[381353427,1756145444516,-480.0,0.00041095,30]
[381353428,1756145444525,-629.84050493,0.00041095,30]
[381353429,1756145444534,-480.0,0.00041095,30]
[381353430,1756145444544,-480.0,0.00041095,30]
[381353431,1756145444553,-480.0,0.00041095,30]
[381353432,1756145444562,-480.0,0.00041095,30]
[381353433,1756145444571,-480.0,0.00041095,30]
[381353434,1756145444580,-1061.3,0.00041095,30]
[381353435,1756145444590,-480.23284918,0.00041095,30]
[381353436,1756145444599,-480.0,0.00041095,30]
[381353437,1756145444608,-480.0,0.00041095,30]
[381353438,1756145444617,-480.0,0.00041095,30]
[381353439,1756145444626,-580.21,0.00041095,30]
[381353440,1756145444636,-480.0,0.00041095,30]
[381353441,1756145444646,-480.0,0.00041095,30]
[381353442,1756145444655,-480.0,0.00041095,30]
[381353443,1756145444664,-875.77,0.00041095,30]
[381353444,1756145444673,-480.0,0.00041095,30]
[381353445,1756145444683,-728.03,0.00041095,30]
[381353446,1756145444692,-480.0,0.00041095,30]
[381353447,1756145444701,-232.37528782,0.00041095,2]
[381353448,1756145444711,-678.43,0.00041095,30]
[381353449,1756145444720,-495.6,0.00041095,30]
[381353450,1756145444729,-480.0,0.00041095,30]
[381353451,1756145444739,-480.0,0.00041095,30]
[381353452,1756145444748,-480.0,0.00041095,30]
[381353453,1756145444757,-660.69,0.00041095,30]
[381353454,1756145444766,-551.7,0.00041095,30]
[381353455,1756145444775,-480.0,0.00041095,30]
[381353456,1756145444785,-480.0,0.00041095,30]
[381353457,1756145444794,-480.0,0.00041095,30]
[381353458,1756145444803,-480.0,0.00041095,30]
[381353459,1756145444813,-480.0,0.00041095,30]
[381353460,1756145444822,-480.0,0.00041095,30]
[381353461,1756145444831,-523.66,0.00041095,30]
[381353462,1756145444840,-480.0,0.00041095,30]
[381353463,1756145444849,-599.94078453,0.00041095,30]
[381353464,1756145444859,-536.68,0.00041095,30]
[381353465,1756145444869,-388.25986992,0.00041095,30]
[381353466,1756145444878,-480.0,0.00041095,30]
[381353467,1756145444888,-618.29,0.00041095,30]
[381353468,1756145444897,-480.0,0.00041095,30]
[381353469,1756145444907,-480.0,0.00041095,30]
[381353470,1756145444916,-480.0,0.00041095,30]
[381353471,1756145444925,-480.0,0.00041095,30]
[381353472,1756145444935,-526.66,0.00041095,30]
[381353473,1756145444944,-480.0,0.00041095,30]
[381353474,1756145444953,-480.0,0.00041095,30]
[381353475,1756145444963,-480.50094717,0.00041095,30]
[381353476,1756145444972,-689.71,0.00041095,20]
[381353477,1756145444981,-480.0,0.00041095,30]
[381353478,1756145444991,-480.0,0.00041095,30]
[381353479,1756145445000,-480.63425034,0.00041095,30]
[381353480,1756145445010,-877.31,0.00041095,30]
[381353481,1756145445020,-1164.89,0.00041095,30]
[381353482,1756145445029,-674.65,0.00041095,7]
[381353483,1756145445039,-902.67,0.00041095,30]
[381353484,1756145445049,-480.0,0.00041095,30]
[381353485,1756145445058,-480.0,0.00041095,30]
[381353486,1756145445067,-480.0,0.00041095,30]
[381353487,1756145445076,-1740.45,0.00041095,30]
[381353488,1756145445085,-480.0,0.00041095,30]
[381353489,1756145445095,-714.61,0.00041095,30]
[381353490,1756145445104,-455.39529739,0.00041095,30]
[381353491,1756145445113,-1104.45,0.00041095,30]
[381353492,1756145445124,-510.45,0.00041095,30]
[381353493,1756145445134,-480.0,0.00041095,30]
[381353494,1756145445143,-480.0,0.00041095,30]
[381353495,1756145445156,-171.07048964,0.00041095,30]
[381353496,1756145445165,-480.0,0.00041095,30]
[381353497,1756145445175,-480.0,0.00041095,30]
[381353498,1756145445185,-724.54,0.00041095,30]
[381353499,1756145445195,-480.0,0.00041095,7]
[381353500,1756145445205,-480.0,0.00041095,30]
[381353501,1756145445215,-480.0,0.00041095,30]
[381353502,1756145445225,-480.0,0.00041095,30]
[381353503,1756145445235,-480.0,0.00041095,30]
[381353504,1756145445244,-409.82546609,0.00041095,30]
[381353505,1756145445254,-480.0,0.00041095,30]
[381353506,1756145445262,-85.18418259,0.00041095,30]
[381353592,1756145474580,168.0,0.00037007,2]
[381353593,1756145493905,171.57906706,0.0003792,2]
[381353594,1756145561716,700.0,0.00038081,7]
[381353595,1756145658211,164.09589,0.00013699,2]
[381353596,1756145658435,164.09589,0.00031311,2]
[381353597,1756145678675,231.44087083,0.000199,2]
[381353599,1756145702605,230.0,0.00037187,120]
[381353600,1756145726671,448.65568943,0.0003792,2]
[381353601,1756145745911,1033.159576,0.000312,6]
[381353604,1756145793681,1695.11251387,0.00032273,6]
[381353605,1756145793705,1563.24173838,0.00032273,6]
[381353606,1756145850128,231.44087082,0.000199,2]
[381353607,1756145937191,203.0,0.00037061,2]
[381353610,1756145957939,3076.00725443,0.00038081,2]
[381353611,1756145973408,1923.99274557,0.00038081,2]
[381353612,1756146003230,208.68,0.00038081,60]
[381353613,1756146025399,895.13922358,0.00038081,2]
[381353615,1756146073461,182.774909,0.0002961,2]
[381353616,1756146142022,168.0,0.00037618,120]
[381353617,1756146441283,-230.0,0.00038225,7]
[381353618,1756146441306,-230.0,0.00038272,2]
[381353619,1756146441326,-203.0,0.00038277,2]
[381353620,1756146441348,-168.0,0.00038312,2]
[381353621,1756146441369,-230.0,0.00038352,2]
[381353622,1756146441391,-89.81211917,0.00038607,7]
[381353624,1756146496963,1576.63739729,0.00038,2]
[381353626,1756146516158,8423.37260271,0.00029003,120]
[381353627,1756146516181,10000.01,0.00029003,120]
[381353628,1756146516204,2585.41798301,0.00029003,120]
[381353629,1756146516634,4504.31971865,0.00038081,2]
[381353630,1756146519157,2910.27229834,0.00037998,2]
[381353631,1756146519180,10000.01,0.00037998,2]
[381353632,1756146519201,10000.01,0.00037998,2]
[381353633,1756146519223,10000.01,0.00037998,2]
[381353634,1756146519245,10000.01,0.00037998,2]
[381353635,1756146519266,10000.01,0.00037998,2]
[381353636,1756146519287,10000.01,0.00037998,2]
[381353637,1756146519308,10000.01,0.00037998,2]
[381353638,1756146519764,8984.5628209,0.00025,2]
[381353639,1756146520557,10364.0,0.00025,2]
[381353640,1756146522652,1809.348575,0.00026,30]
[381353641,1756146526420,197.44174739,0.00027,2]
[381353642,1756146526561,9802.56825261,0.00025,2]
[381353643,1756146526582,10000.01,0.00025,2]
[381353644,1756146526605,10000.01,0.00025,2]
[381353645,1756146526626,10000.01,0.00025,2]
[381353646,1756146526648,10000.01,0.00025,2]
[381353647,1756146526669,10000.01,0.00025,2]
[381353648,1756146526691,10000.01,0.00025,2]
[381353649,1756146526713,5544.05982925,0.00025,2]
[381353650,1756146528034,4455.95017075,0.0002465,2]
[381353651,1756146528058,10000.01,0.0002465,2]
[381353652,1756146528080,1005.80606134,0.0002465,2]
[381353653,1756146529351,191.47024072,0.0002616,2]
[381353654,1756146529947,183.12351534,0.00026122,2]
[381353655,1756146544144,206.34515292,0.000199,2]
[381353656,1756146544298,206.34515291,0.00021754,2]
[381353657,1756146544477,206.34515291,0.00023609,2]
[381353658,1756146544809,206.34515291,0.00025463,3]
[381353659,1756146547123,-206.34515291,0.00027318,7]
[381353660,1756146547143,-197.18490044,0.0002739,2]
[381353661,1756146547164,-780.48,0.0002769,10]
[381353662,1756146547184,-300.0,0.00027699,2]
[381353663,1756146547203,-196289.7111915,0.000277,2]
[381353664,1756146547221,-86193.51409257,0.0002799,2]
[381353665,1756146560087,-1331.99750922,0.0002799,2]
[381353666,1756146560113,-206.34515291,0.00029172,11]
[381353667,1756146560134,-420.0,0.00029924,2]
[381353668,1756146560160,-206.34515291,0.00031027,15]
[381353669,1756146560182,-1854.72480007,0.00031627,60]
[381353670,1756146561101,-1738.10785341,0.00031627,60]
[381353671,1756146565115,-908.52328668,0.00031527,2]
[381353672,1756146565136,-1407.16734652,0.00031627,60]
[381353673,1756146565156,-19718.94763477,0.000317,7]
[381353674,1756146569115,1529.08836957,0.0002731,2]
[381353675,1756146569140,2292.2710505,0.0002731,2]
[381353676,1756146574137,-1810.46795472,0.000317,7]
[381353677,1756146576994,5000.0,0.0002731,2]
[381353678,1756146592833,5000.0,0.0002791,2]
[381353679,1756146600324,561.48392158,0.00025205,2]
[381353682,1756146608459,5000.0,0.0002821,2]
[381353683,1756146624185,5000.0,0.0002861,2]
[381353694,1756146632620,-186.31634,0.000306,2]
[381353695,1756146632631,-209.52749684,0.00031525,2]
[381353696,1756146632640,-164.57808423,0.00031526,2]
[381353697,1756146632649,-208.57807893,0.00031526,2]
[381353699,1756146632729,-2886.27072372,0.00031526,2]
[381353703,1756146632739,-209.52749684,0.00031526,2]
[381353707,1756146632748,-300.0,0.00031625,3]
[381353709,1756146632758,-400.0,0.00031625,2]
[381353712,1756146632768,-400.0,0.00031625,3]
[381353714,1756146632778,-400.0,0.00031625,3]
[381353716,1756146632787,-1600.0,0.00031625,3]
[381353719,1756146632797,-400.0,0.00031625,3]
[381353721,1756146632807,-4320.0,0.00031626,2]
[381353723,1756146632816,-51096.84213807,0.00031626,2]
[381353729,1756146638516,-170.0,0.00029961,120]
[381353731,1756146638527,-192.37541116,0.00031625,2]
[381353732,1756146638539,-281.81164371,0.00031625,2]
[381353734,1756146638549,-362.97190694,0.00031625,2]
[381353735,1756146638560,-500.0,0.00031625,2]
[381353736,1756146638570,-640.496275,0.00031625,2]
[381353737,1756146638582,-500.0,0.00031625,2]
[381353738,1756146638593,-500.0,0.00031625,2]
[381353739,1756146638603,-500.0,0.00031625,2]
[381353740,1756146638612,-294.2188923,0.00031625,2]
[381353741,1756146638622,-638.73829405,0.00031625,2]
[381353742,1756146638632,-500.0,0.00031625,2]
[381353743,1756146638641,-500.0,0.00031625,2]
[381353745,1756146638651,-500.0,0.00031625,2]
[381353747,1756146638660,-481.30405833,0.00031625,2]
[381353749,1756146638670,-500.0,0.00031625,2]
[381353751,1756146638680,-500.0,0.00031625,2]
[381353753,1756146638690,-397.8844724,0.00031625,2]
[381353755,1756146638700,-500.0,0.00031625,2]
[381353756,1756146638710,-500.0,0.00031625,2]
[381353757,1756146638720,-500.0,0.00031625,2]
[381353758,1756146638730,-644.13446898,0.00031625,2]
[381353759,1756146638741,-573.73928222,0.00031625,2]
[381353761,1756146638750,-32945.24953974,0.00031626,2]
[381353762,1756146638760,-8000.0,0.00031626,2]
[381353763,1756146638770,-10422.61103846,0.00031626,2]
[381353764,1756146638782,-16639.91494903,0.00031626,2]
[381353765,1756146638792,-8840.06136947,0.00031626,2]
[381353766,1756146638804,-246672.92264146,0.00031626,2]
[381353767,1756146639668,5000.0,0.0002881,2]
[381353837,1756146640594,-170.0,0.00031459,120]
[381353840,1756146640604,-1377.32648704,0.00031626,2]
[381353855,1756146640658,-2321.80814269,0.00031626,2]
[381354057,1756146643771,-2883.84776255,0.00031626,2]
[381354058,1756146643778,-12918.00441051,0.000317,7]
[381354059,1756146643787,-1504.85,0.000317,7]
[381354060,1756146643796,-302.63,0.000317,7]
[381354061,1756146643804,-206.34515291,0.00032881,19]
[381354062,1756146643812,-3094.84880261,0.0003327,2]
[381354063,1756146643822,-908.52328665,0.0003334,2]
[381354064,1756146643830,-216.04034502,0.00033548,2]
[381354065,1756146643838,-273.0,0.00034027,2]
[381354066,1756146643847,-751.0,0.00034169,3]
[381354067,1756146643855,-206.34515291,0.00034736,23]
[381354068,1756146643862,-3094.84880261,0.00035014,2]
[381354069,1756146643871,-908.52328665,0.00035154,2]
[381354070,1756146643879,-186.31634,0.00035167,2]
[381354071,1756146643887,-171.80527549,0.00035616,7]
[381354072,1756146643896,-500.0,0.00035616,7]
[381354073,1756146643904,-340.0,0.00035768,2]
[381354074,1756146643912,-174.0,0.00036,30]
[381354075,1756146643920,-206.34515291,0.0003659,27]
[381354076,1756146643929,-3094.84880261,0.00036758,2]
[381354077,1756146643937,-908.52328665,0.00036967,2]
[381354078,1756146643944,-302.63,0.000376,7]
[381354079,1756146643953,-25553.81056196,0.00037998,2]
[381354099,1756146656107,10000.01,0.00028825,2]
[381354100,1756146656130,2313.289142,0.00028825,2]
[381354101,1756146712682,155.19,0.00028887,15]
[381354102,1756146735220,853.43289589,0.000199,2]
[381354103,1756146735331,853.43289575,0.00021627,2]
[381354104,1756146735466,853.43289575,0.00023353,2]
[381354105,1756146735589,853.43289575,0.0002508,2]
[381354106,1756146735718,853.43289575,0.00026806,6]
[381354107,1756146735839,853.43289575,0.00028533,10]
[381354109,1756146805269,-209.89,0.00030226,30]
[381354110,1756146805306,-853.43289575,0.00030259,13]
[381354111,1756146808689,199.0,0.00030126,30]
[381354112,1756146844199,5000.0,0.0003141,2]
[381354113,1756146845117,-153.61989224,0.00031526,109]
[381354114,1756146845800,-6502.10718114,0.00031625,2]
[381354115,1756146845973,-10000.01,0.00031625,2]
[381354116,1756146846195,-10000.01,0.00031625,2]
[381354117,1756146846378,-10000.01,0.00031625,2]
[381354118,1756146860622,5000.0,0.0003151,2]
[381354119,1756146868498,5000.0,0.0003151,2]
[381354120,1756146881616,0.01,0.0003151,30]
[381354121,1756146903169,311.679999,0.00031402,60]
[381354122,1756146903791,584.55377733,0.000253,2]
[381354123,1756146919408,996.33890069,0.000199,2]
[381354124,1756146919536,996.33890067,0.00021627,2]
[381354125,1756146919664,996.33890067,0.00023353,2]
[381354126,1756146919772,996.33890067,0.0002508,2]
[381354127,1756146920247,996.33890067,0.00026806,6]
[381354128,1756146920290,996.33890067,0.00028533,10]
[381354129,1756146920337,996.33890067,0.00030259,13]
[381354130,1756146933739,164.132421,0.00013699,2]
[381354131,1756146934158,164.132421,0.0002911,2]
[381354132,1756146947428,246.07,0.00030387,30]
[381354133,1756146975084,151.0,0.00031,120]
[381354134,1756146986307,1404.06907696,0.00031099,2]
[381354135,1756146986328,8595.93092304,0.00031099,2]
[381354137,1756147010754,164.05,0.00030427,30]
[381354139,1756147045273,627.58856181,0.00031474,7]
[381354140,1756147047894,612.44051515,0.00030945,30]
[381354141,1756147047915,387.55948485,0.00030945,30]
[381354142,1756147063954,5000.0,0.00031474,2]
[381354143,1756147080280,4612.45051515,0.00031474,2]
[381354144,1756147080303,387.54948485,0.00031474,2]
[381354145,1756147105814,341.5231711,0.00030944,2]
[381354146,1756147109734,786.92354215,0.000199,2]
[381354147,1756147109854,786.92354189,0.00021627,2]
[381354148,1756147109974,786.92354189,0.00023353,2]
[381354149,1756147110078,786.92354189,0.0002508,2]
[381354150,1756147110211,786.92354189,0.00026806,6]
[381354151,1756147110356,786.92354189,0.00028533,10]
[381354152,1756147110494,786.92354189,0.00030259,13]
[381354153,1756147139931,165.0,8.7e-07,2]
[381354154,1756147221393,714.55827471,0.00027126,2]
[381354155,1756147285706,5000.0,0.0003151,2]
[381354156,1756147293155,603.29852846,0.000199,2]
[381354157,1756147293545,603.2985283,0.00021627,2]
[381354158,1756147293601,603.2985283,0.00023353,2]
[381354159,1756147293641,603.2985283,0.0002508,2]
[381354160,1756147293698,603.2985283,0.00026806,6]
[381354161,1756147293775,603.2985283,0.00028533,10]
[381354162,1756147293909,603.2985283,0.00030259,13]
[381354163,1756147300905,776.92030174,0.0003151,2]
[381354164,1756147300928,4223.07969826,0.0003151,2]
[381354165,1756147330990,-1600.0,0.00031621,3]
[381354166,1756147331020,-400.0,0.00031621,2]
[381354167,1756147331049,-300.0,0.00031622,3]
[381354168,1756147331077,-300.0,0.00031622,3]
[381354169,1756147331106,-314.0,0.00031622,3]
[381354170,1756147331137,-1200.0,0.00031622,3]
[381354171,1756147331516,-5000.0,0.00031623,60]
[381354172,1756147333315,0.01,0.0003181,2]
[381354173,1756147333338,4999.99,0.0003181,2]
[381354174,1756147335274,199.0,0.00031523,60]
[381354175,1756147340993,-603.2985283,0.00031986,17]
[381354176,1756147348505,5000.0,0.00031986,2]
[381354177,1756147364202,5000.0,0.00032113,2]
[381354178,1756147379935,5000.0,0.00032113,2]
[381354179,1756147395853,0.01,0.00032113,2]
[381354180,1756147395876,4999.99,0.00032113,2]
[381354181,1756147408533,5000.02,0.00031591,2]
[381354182,1756147408556,10000.01,0.00031591,2]
[381354183,1756147408578,10000.01,0.00031591,2]
[381354184,1756147408599,10000.01,0.00031591,2]
[381354185,1756147408621,10000.01,0.00031591,2]
[381354186,1756147408642,10000.01,0.00031591,2]
[381354187,1756147408663,10000.01,0.00031591,2]
[381354188,1756147408686,3793.4129434,0.00031591,2]
[381354189,1756147408708,4801.02,0.00031591,2]
[381354190,1756147411190,-1237.114458,0.00031591,2]
[381354191,1756147441197,-5000.0,0.00032113,2]
[381354192,1756147455524,5000.0,0.0003171,2]
[381354193,1756147458664,670.20967311,0.00029879,2]
[381354194,1756147470704,5000.0,0.0003201,2]
[381354195,1756147471262,-883.07087717,0.00032113,2]
[381354196,1756147476441,1639.7932822,0.000199,2]
[381354197,1756147476547,1639.7932822,0.00021627,2]
[381354198,1756147476653,1639.7932822,0.00023353,2]
[381354199,1756147476763,80.6301534,0.0002508,2]
[381354200,1756147476791,1559.1631288,0.0002508,2]
[381354201,1756147476873,1639.7932822,0.00026806,6]
[381354202,1756147476983,1130.84391589,0.00028533,10]
[381354203,1756147477009,508.94936631,0.00028533,10]
[381354204,1756147477101,1639.7932822,0.00030259,13]
[381354205,1756147485868,5000.0,0.0003161,2]
[381354206,1756147491311,-1639.7932822,0.00031986,17]
[381354207,1756147501120,5000.0,0.0003201,2]
[381354208,1756147502900,-7723.57723134,0.00032128,2]
[381354209,1756147516269,5000.0,0.0003211,2]
[381354210,1756147521330,-515.77262314,0.00032128,2]
[381354211,1756147521369,-3968.46475372,0.00032128,2]
[381354212,1756147521534,-5000.0,0.00032128,2]
[381354213,1756147521570,-0.01,0.00032128,2]
[381354214,1756147521783,-1324.59631576,0.00032128,2]
[381354215,1756147521814,-2245.9039807,0.00032175,2]
[381354216,1756147521851,-201.0,0.00032379,120]
[381354217,1756147522801,662.30315788,0.00032175,2]